bitfinex/quotes_BTCUSD_20251114
["timestamp","ask_amount","ask_price","bid_price","bid_amount"]
[1763144263867,0.0260124,96108.0,96106.0,0.20810237]
[1763144264149,0.20811315,96102.0,96100.0,0.0104]
[1763144264363,0.02380289,96101.0,96100.0,0.0104]
[1763144264572,0.03963289,96101.0,96100.0,0.0104]
[1763144264999,0.01583,96101.0,96100.0,0.0104]
[1763144265986,0.03807847,96101.0,96100.0,0.0104]
[1763144267074,0.36107847,96101.0,96100.0,0.0104]
[1763144267292,0.33883,96101.0,96100.0,0.0104]
[1763144268233,0.38224874,96101.0,96100.0,0.0104]
[1763144268665,0.43224874,96101.0,96100.0,0.0104]
[1763144269309,0.33883,96101.0,96100.0,0.0104]
[1763144269522,0.33983,96101.0,96100.0,0.0104]
[1763144269713,0.33983,96101.0,96100.0,0.01151182]
[1763144269914,0.33883,96101.0,96100.0,0.21962836]
[1763144270352,0.33983,96101.0,96100.0,0.21962836]
[1763144270467,0.001,96101.0,96100.0,0.21962836]
[1763144270897,0.01683,96101.0,96100.0,0.21962836]
[1763144271128,0.001,96101.0,96100.0,0.21962836]
[1763144271331,0.0260124,96108.0,96104.0,0.20810648]
[1763144271514,0.20809992,96108.0,96104.0,0.20810648]
[1763144271712,0.01583,96105.0,96104.0,0.20810648]
[1763144272114,0.01583,96105.0,96104.0,0.20910979]
[1763144272387,0.0260124,96108.0,96107.0,0.20810121]
[1763144272550,0.01248,96111.0,96100.0,0.21851654]
[1763144272551,0.02505048,96110.0,96100.0,0.0104]
[1763144272756,0.01583,96105.0,96103.0,0.20810873]
[1763144273108,0.01583,96104.0,96100.0,0.0104]
[1763144273367,0.01583,96101.0,96100.0,0.0104]
[1763144273512,0.04184429,96101.0,96100.0,0.0104]
[1763144273722,0.04184429,96101.0,96100.0,0.21851654]
[1763144274021,0.01583,96101.0,96100.0,0.21851654]
[1763144275418,0.22394437,96101.0,96100.0,0.0104]
[1763144275614,0.01583,96101.0,96100.0,0.0104]
[1763144275916,0.03848832,96101.0,96100.0,0.0104]
[1763144276137,0.24660269,96101.0,96100.0,0.0104]
[1763144276337,0.22394437,96101.0,96100.0,0.0104]
[1763144278551,0.54694437,96101.0,96100.0,0.0104]
[1763144278843,0.59036311,96101.0,96100.0,0.01151182]
[1763144279062,0.64036311,96101.0,96100.0,0.01151182]
[1763144279207,0.65961712,96101.0,96100.0,0.01151182]
[1763144279815,0.64036311,96101.0,96100.0,0.01151182]
[1763144280810,0.64999483,96101.0,96100.0,0.01151182]
[1763144281221,0.59999483,96101.0,96100.0,0.01151182]
[1763144281426,0.60099483,96101.0,96100.0,0.01151182]
[1763144281886,0.62026364,96101.0,96100.0,0.01151182]
[1763144282653,0.67026364,96101.0,96100.0,0.01151182]
[1763144283125,0.69247024,96101.0,96100.0,0.01017182]
[1763144283689,0.80128408,96101.0,96100.0,1e-08]
[1763144283876,0.77360059,96101.0,96100.0,1e-08]
[1763144284079,0.69247024,96101.0,96100.0,1e-08]
[1763144284322,0.697905,96101.0,96100.0,1e-08]
[1763144284518,0.73473679,96101.0,96100.0,1e-08]
[1763144284692,0.647905,96101.0,96100.0,1e-08]
[1763144284895,0.60448626,96101.0,96100.0,1e-08]
[1763144285115,0.57978269,96101.0,96100.0,1e-08]
[1763144286055,0.55757609,96101.0,96100.0,1e-08]
[1763144286838,0.55757609,96101.0,96100.0,0.01947117]
[1763144287474,0.55657609,96101.0,96100.0,0.01947117]
[1763144287750,0.55757609,96101.0,96100.0,1e-08]
[1763144288805,0.57682844,96101.0,96100.0,1e-08]
[1763144290916,0.62024718,96101.0,96100.0,1e-08]
[1763144291090,0.69242343,96101.0,96100.0,1e-08]
[1763144291588,0.64242343,96101.0,96100.0,1e-08]
[1763144291766,0.69242343,96101.0,96100.0,1e-08]
[1763144292659,0.69142343,96101.0,96100.0,1e-08]
[1763144293104,0.64242343,96101.0,96100.0,1e-08]
[1763144297214,0.69242343,96101.0,96100.0,1e-08]
[1763144297573,0.6924112,96101.0,96100.0,1e-08]
[1763144297981,0.6424112,96101.0,96100.0,1e-08]
[1763144299167,0.6924112,96101.0,96100.0,1e-08]
[1763144300837,0.6424112,96101.0,96100.0,1e-08]
[1763144303039,0.6924112,96101.0,96100.0,1e-08]
[1763144306295,0.72937635,96101.0,96100.0,1e-08]
[1763144306443,0.6924112,96101.0,96100.0,1e-08]
[1763144307238,0.69784632,96101.0,96100.0,1e-08]
[1763144307471,2.69784632,96101.0,96100.0,1e-08]
[1763144307684,2.69784632,96101.0,96070.0,0.0004]
[1763144307685,0.6245981,96071.0,96070.0,0.0004]
[1763144307886,0.70326619,96071.0,96070.0,0.0004]
[1763144308092,0.70326619,96071.0,96070.0,0.00121395]
[1763144308748,0.80693557,96071.0,96070.0,1e-08]
[1763144308949,0.84391929,96071.0,96070.0,1e-08]
[1763144309107,0.80693557,96071.0,96070.0,1e-08]
[1763144309311,0.64060977,96061.0,96060.0,1e-08]
[1763144309531,0.57466313,96041.0,96040.0,0.0004]
[1763144309729,0.60228313,96041.0,96040.0,0.0004]
[1763144310227,0.66274292,96041.0,96040.0,0.0004]
[1763144310564,0.68487195,96041.0,96040.0,0.0004]
[1763144310799,0.69447506,96041.0,96040.0,0.0004]
[1763144310930,0.61374292,96041.0,96040.0,0.0004]
[1763144311141,0.61274292,96041.0,96040.0,0.0004]
[1763144312200,0.61374292,96041.0,96040.0,0.0004]
[1763144312376,0.61474292,96041.0,96040.0,0.0004]
[1763144313754,0.23786439,96041.0,96040.0,0.0004]
[1763144314297,0.29234407,96041.0,96030.0,0.0004]
[1763144314521,0.31242695,96023.0,96000.0,0.0004]
[1763144314755,0.01622,96001.0,96000.0,0.0004]
[1763144314903,0.02782,96001.0,96000.0,0.0004]
[1763144316428,0.02782,96001.0,96000.0,0.0014]
[1763144316653,0.02782,96001.0,96000.0,0.0004]
[1763144316816,0.02782,96001.0,96000.0,0.20873333]
[1763144317016,0.3804327,96030.0,96003.0,0.2083265]
[1763144317017,0.0116,96011.0,96003.0,0.2083265]
[1763144317218,0.0116,96011.0,96006.0,0.20831904]
[1763144317459,0.0116,96011.0,96000.0,0.20873116]
[1763144317659,0.0116,96011.0,96009.0,0.20831171]
[1763144318077,0.323,96023.0,96008.0,0.20831377]
[1763144318273,0.323,96023.0,96000.0,0.0004]
[1763144318573,0.20829938,96016.0,96013.0,0.20830373]
[1763144318719,0.21990444,96014.0,96000.0,0.0004]
[1763144318919,0.21990444,96014.0,96011.0,0.20830887]
[1763144319120,0.0116,96014.0,96012.0,0.20830688]
[1763144319747,0.0116,96014.0,96009.0,0.20830714]
[1763144319748,0.0116,96013.0,96009.0,0.2083124]
[1763144319978,0.20830806,96012.0,96007.0,0.20831718]
[1763144320212,0.0116,96013.0,96000.0,0.21063207]
[1763144320385,0.0116,96013.0,96011.0,0.20830789]
[1763144320791,0.323,96022.0,96019.0,0.20829022]
[1763144320953,0.323,96022.0,96009.0,0.2083124]
[1763144321212,0.02782,96010.0,96000.0,0.01081666]
[1763144321385,0.01622,96001.0,96000.0,0.0004]
[1763144321586,0.20832184,96006.0,96000.0,0.0004]
[1763144321791,0.0116,96010.0,96000.0,0.20873116]
[1763144321989,0.0116,96015.0,96011.0,0.20830879]
[1763144322189,0.0116,96015.0,96000.0,0.0004]
[1763144322403,0.01622,96001.0,96000.0,0.0004]
[1763144322931,0.01041666,96000.0,95986.0,0.20836219]
[1763144323064,0.01041666,96000.0,95970.0,0.01041992]
[1763144323065,0.20834845,95994.0,95971.0,0.21729411]
[1763144323266,0.20834324,95996.0,95989.0,0.2083557]
[1763144323470,0.20835402,95991.0,95938.0,0.09933398]
[1763144323745,0.02261,95998.0,95977.0,0.10479654]
[1763144323883,0.02261,95998.0,95978.0,0.00455719]
[1763144324093,0.02261,95998.0,95979.0,0.20837779]
[1763144324291,0.37001929,95990.0,95969.0,0.20839999]
[1763144324519,0.2083772,95980.0,95962.0,0.10488654]
[1763144324719,0.02261,95989.0,95970.0,0.001]
[1763144324923,0.0116,95979.0,95970.0,0.001]
[1763144325122,0.0116,95979.0,95970.0,0.20939743]
[1763144325325,0.20838108,95978.0,95970.0,0.001]
[1763144325528,0.20839018,95974.0,95970.0,0.001]
[1763144325703,0.03421,95979.0,95970.0,0.001]
[1763144325906,0.03421,95979.0,95963.0,0.0089]
[1763144326237,0.03421,95979.0,95973.0,0.20839087]
[1763144326646,0.03421,95979.0,95963.0,0.0089]
[1763144326647,0.20840089,95969.0,95963.0,0.0089]
[1763144326825,0.01622,95974.0,95963.0,0.0089]
[1763144327024,0.23099325,95978.0,95971.0,0.2083959]
[1763144327225,0.02261,95978.0,95963.0,0.0089]
[1763144327433,0.20838906,95975.0,95970.0,0.20839788]
[1763144327635,0.02261,95978.0,95963.0,0.0089]
[1763144327833,0.0116,95964.0,95963.0,0.20841238]
[1763144328065,0.0116,95964.0,95963.0,0.001]
[1763144328066,0.23623148,95964.0,95963.0,0.001]
[1763144328222,0.04341874,95961.0,95940.0,0.0004]
[1763144328427,0.0116,95941.0,95940.0,0.0004]
[1763144328639,0.02782,95941.0,95940.0,0.0004]
[1763144329559,0.35082,95941.0,95940.0,0.0004]
[1763144329740,0.35082,95941.0,95940.0,0.0014]
[1763144330932,0.39626,95941.0,95940.0,0.0004]
[1763144331133,0.35082,95941.0,95940.0,0.0004]
[1763144331454,0.35082,95941.0,95940.0,0.00393247]
[1763144331455,0.02782,95941.0,95940.0,0.00393247]
[1763144331822,0.0116,95964.0,95940.0,0.00393247]
[1763144331823,0.00503712,95964.0,95941.0,0.00656]
[1763144331952,0.20842611,95958.0,95950.0,0.20844187]
[1763144332153,0.00503712,95964.0,95945.0,0.10479654]
[1763144332352,0.00503712,95964.0,95946.0,0.00278687]
[1763144332585,0.00503712,95964.0,95947.0,0.00278746]
[1763144332808,0.20841553,95963.0,95957.0,0.20842575]
[1763144333017,0.2134498,95964.0,95958.0,0.20842255]
[1763144333250,0.00503712,95964.0,95945.0,0.10479654]
[1763144333369,0.00503712,95964.0,95941.0,0.00656]
[1763144333370,0.20844273,95950.0,95941.0,0.00656]
[1763144333569,0.37001929,95960.0,95942.0,0.10479654]
[1763144333929,0.20842589,95958.0,95953.0,0.20843401]
[1763144334168,0.20838108,95978.0,95959.0,0.22472217]
[1763144334336,0.01626224,95977.0,95959.0,0.0163]
[1763144334539,0.20841255,95964.0,95953.0,0.20843537]
[1763144334758,0.01626224,95977.0,95950.0,0.01042209]
[1763144334759,0.02261,95977.0,95950.0,0.01042209]
[1763144334932,0.20842302,95959.0,95949.0,0.20844218]
[1763144335135,0.20841839,95961.0,95950.0,0.20843755]
[1763144335333,0.2084212,95960.0,95955.0,0.20843]
[1763144335540,0.2084212,95960.0,95956.0,0.20842794]
[1763144335742,0.37001929,95970.0,95953.0,0.20843403]
[1763144335922,0.20840895,95966.0,95942.0,0.10479654]
[1763144336124,0.00796162,95965.0,95949.0,0.002]
[1763144336330,0.01561424,95964.0,95955.0,0.20842963]
[1763144336535,0.20841365,95963.0,95953.0,0.20843476]
[1763144336745,0.20841365,95963.0,95949.0,0.001]
[1763144336746,0.02261,95976.0,95949.0,0.001]
[1763144336944,0.20840326,95968.0,95963.0,0.20841171]
[1763144337146,0.323,95973.0,95967.0,0.20840435]
[1763144337356,0.3346,95979.0,95966.0,0.20840714]
[1763144337560,0.02603369,95978.0,95960.0,0.10479654]
[1763144337824,0.02603369,95978.0,95950.0,0.02697209]
[1763144337825,0.2084089,95966.0,95961.0,0.20841633]
[1763144338029,0.323,95974.0,95959.0,0.20842071]
[1763144338030,0.53139194,95974.0,95959.0,0.20842071]
[1763144338406,0.01164137,95973.0,95950.0,0.02697209]
[1763144338559,0.2084071,95967.0,95962.0,0.20841376]
[1763144338764,0.02515775,95966.0,95962.0,0.20841376]
[1763144338945,0.3346,95979.0,95958.0,0.10479654]
[1763144339142,0.323,95976.0,95971.0,0.20839587]
[1763144339345,0.0116,95979.0,95958.0,0.10479654]
[1763144339546,0.02261,95988.0,95958.0,0.10479654]
[1763144339547,0.02261,95988.0,95976.0,0.20838508]
[1763144339867,0.02261,95988.0,95960.0,0.010421]
[1763144340045,0.323,95984.0,95978.0,0.20838048]
[1763144340232,0.323,95984.0,95960.0,0.026971]
[1763144340433,0.03764627,95983.0,95960.0,0.026971]
[1763144340878,0.03764627,95983.0,95961.0,0.01655]
[1763144341101,0.24601691,95983.0,95976.0,0.20838438]
[1763144341329,0.0116,95983.0,95978.0,0.20838034]
[1763144341557,0.02495,96003.0,95986.0,0.20836203]
[1763144341769,0.04146388,95998.0,95992.0,0.2083494]
[1763144341980,0.37001929,96010.0,95983.0,0.03241]
[1763144342177,0.20834125,95997.0,95990.0,0.20835347]
[1763144342423,0.323,96004.0,96003.0,0.20832682]
[1763144342596,0.323,96004.0,95995.0,0.10479654]
[1763144342597,0.20831098,96011.0,96009.0,0.00656]
[1763144342739,0.02603895,96010.0,96009.0,0.00656]
[1763144343142,0.2083138,96009.0,96004.0,0.00656]
[1763144343443,0.20831415,96009.0,96004.0,0.00656]
[1763144343671,0.02603949,96008.0,95993.0,0.20834826]
[1763144343872,0.02603949,96008.0,95994.0,0.10479654]
[1763144344089,0.20831687,96008.0,96004.0,0.20832462]
[1763144344290,0.02603976,96007.0,96003.0,0.20832581]
[1763144344536,0.02603976,96007.0,96003.0,0.2083266]
[1763144344700,0.01141,96014.0,96006.0,0.00173787]
[1763144345015,0.20832237,96006.0,96004.0,0.00656]
[1763144345214,0.20831971,96007.0,96004.0,0.00656]
[1763144345424,0.20832182,96006.0,96004.0,0.00656]
[1763144345833,0.20832031,96006.0,96004.0,0.00656]
[1763144346335,0.20831325,96010.0,96004.0,0.00656]
[1763144346534,0.20832144,96006.0,96004.0,0.00656]
[1763144347017,0.04244031,96005.0,95980.0,0.01041883]
[1763144347179,0.20833387,96000.0,95983.0,0.20837023]
[1763144347380,0.0164,96005.0,95980.0,0.33341883]
[1763144347680,0.63265701,96014.0,95984.0,0.10479654]
[1763144347681,0.01041558,96010.0,95984.0,0.10479654]
[1763144347937,0.2083395,95998.0,95984.0,0.10479654]
[1763144348148,0.20836477,95986.0,95982.0,0.01099]
[1763144348294,0.02604248,95997.0,95982.0,0.001]
[1763144348295,0.20836948,95984.0,95982.0,0.001]
[1763144348499,0.04244627,95983.0,95982.0,0.001]
[1763144349329,0.02604627,95983.0,95967.0,0.02654]
[1763144349527,0.20838202,95978.0,95967.0,0.00999]
[1763144349849,0.20837028,95983.0,95978.0,0.20838022]
[1763144350024,0.20837028,95983.0,95973.0,0.10479654]
[1763144350025,0.02604655,95982.0,95980.0,0.20837579]
[1763144350226,0.00989201,95989.0,95987.0,0.20835994]
[1763144350455,0.21974998,95997.0,95973.0,0.10479654]
[1763144350456,0.01141,95997.0,95995.0,0.2083427]
[1763144350614,0.0116,96016.0,95996.0,0.01579]
[1763144350816,0.0116,96016.0,95990.0,0.01041775]
[1763144350817,0.25349882,96013.0,95990.0,0.01041775]
[1763144351006,0.03475,96014.0,96009.0,0.20831258]
[1763144351007,0.01915493,96012.0,96009.0,0.20831258]
[1763144351211,0.323,96009.0,96004.0,0.20832336]
[1763144351407,0.20831814,96007.0,95990.0,0.01041775]
[1763144351647,0.20832248,96005.0,95990.0,0.01041775]
[1763144351859,0.323,96009.0,96007.0,0.20831778]
[1763144352061,0.01915654,96008.0,96007.0,0.20831778]
[1763144352271,0.20831991,96007.0,95999.0,0.20833464]
[1763144352472,0.02604003,96006.0,96003.0,0.20832441]
[1763144352687,0.02306962,96007.0,95995.0,0.00656]
[1763144352992,0.01139507,96007.0,96006.0,0.20832031]
[1763144353208,0.323,96010.0,95995.0,0.00656]
[1763144353209,0.04519814,96009.0,95995.0,0.00656]
[1763144353410,0.2083182,96007.0,96004.0,0.20832381]
[1763144353624,0.04519895,96006.0,96004.0,0.20832381]
[1763144353837,0.03475,96014.0,96004.0,0.20832381]
[1763144353838,0.01915892,96005.0,96004.0,0.20832381]
[1763144354076,0.01915892,96005.0,96002.0,0.20832773]
[1763144354077,0.01915892,96005.0,95998.0,0.2083373]
[1763144354311,0.01915892,96004.0,95996.0,0.20834201]
[1763144354514,0.01915892,96003.0,96002.0,0.20832899]
[1763144354741,0.02603814,96013.0,95995.0,0.00656]
[1763144354953,0.04519538,96012.0,95995.0,0.00656]
[1763144355104,0.01915697,96011.0,95995.0,0.00656]
[1763144355311,0.02603895,96010.0,95996.0,0.20834201]
[1763144355517,0.2083138,96009.0,95995.0,0.00656]
[1763144355718,0.02603949,96008.0,96005.0,0.20832057]
[1763144355948,0.02603949,96008.0,96006.0,0.20831882]
[1763144356087,0.02603895,96010.0,96004.0,0.20832446]
[1763144356290,0.02769591,96052.0,95995.0,0.00656]
[1763144356291,0.02334,96028.0,96027.0,0.20827475]
[1763144356625,0.02334,96028.0,96011.0,0.01655]
[1763144356626,0.01915203,96028.0,96011.0,0.01655]
[1763144356804,0.0114,96032.0,96011.0,0.01655]
[1763144356989,0.0114,96032.0,96028.0,0.20827201]
[1763144357192,0.0114,96032.0,96030.0,0.20826619]
[1763144357597,0.323,96036.0,96035.0,0.2082574]
[1763144357836,0.34214548,96036.0,96029.0,0.20826608]
[1763144358091,0.0114,96037.0,96034.0,0.20825934]
[1763144358294,0.0114,96037.0,96035.0,0.20825613]
[1763144358464,0.02334,96048.0,96036.0,0.00999]
[1763144358465,0.0114,96045.0,96036.0,0.00999]
[1763144358667,0.03825358,96044.0,96030.0,0.00999]
[1763144358868,0.0114,96028.0,96020.0,0.01041449]
[1763144359076,0.20828168,96024.0,96019.0,0.21828177]
[1763144359476,0.20827796,96026.0,96019.0,0.21828177]
[1763144359678,0.0114,96028.0,96019.0,0.00999]
[1763144359993,0.2082787,96026.0,96022.0,0.20828454]
[1763144360157,0.03474,96045.0,96019.0,0.00999]
[1763144360357,0.02924516,96044.0,96039.0,0.20824737]
[1763144360713,0.02603,96043.0,96024.0,0.10479654]
[1763144360941,0.02603,96043.0,96025.0,0.01655]
[1763144361082,0.02603,96043.0,96038.0,0.20824961]
[1763144361281,0.0114,96050.0,96040.0,0.20824222]
[1763144361478,0.3344,96050.0,96025.0,0.01655]
[1763144361678,0.20825029,96039.0,96033.0,0.20825988]
[1763144361904,0.04263974,96049.0,96024.0,0.31307563]
[1763144361905,0.02334,96049.0,96024.0,0.31307563]
[1763144362103,0.0114,96043.0,96041.0,0.20824299]
[1763144362310,0.02294292,96044.0,96032.0,0.20826311]
[1763144362481,0.0114,96050.0,96043.0,0.20824005]
[1763144362815,0.0114,96044.0,96041.0,0.20824345]
[1763144363006,0.20824082,96043.0,96025.0,0.20827909]
[1763144363209,0.20825445,96037.0,96024.0,0.10579654]
[1763144363369,0.0114,96044.0,96033.0,0.208261]
[1763144363578,0.208248,96040.0,96034.0,0.20825799]
[1763144363773,0.0114,96044.0,96024.0,0.10479654]
[1763144363972,0.0114,96044.0,96032.0,0.20826214]
[1763144364177,0.0114,96044.0,96030.0,0.20826617]
[1763144364384,0.20825608,96036.0,96031.0,0.20826562]
[1763144364602,0.20824683,96040.0,96037.0,0.2082519]
[1763144364799,0.0114,96044.0,96032.0,0.20826347]
[1763144364800,0.20824222,96042.0,96032.0,0.20826347]
[1763144365003,0.01594783,96041.0,96033.0,0.20826174]
[1763144365237,0.0114,96044.0,96039.0,0.2082463]
[1763144365238,0.02264124,96042.0,96039.0,0.2082463]
[1763144365444,0.0114,96044.0,96042.0,0.20824024]
[1763144365677,0.0114,96044.0,96042.0,0.20824207]
[1763144365830,0.0114,96044.0,96042.0,0.20824079]
[1763144366049,0.01603,96043.0,96024.0,0.10579654]
[1763144366250,0.04074879,96043.0,96039.0,0.20824737]
[1763144366431,0.0114,96044.0,96043.0,0.20824005]
[1763144366632,0.0114,96050.0,96038.0,0.2082509]
[1763144366871,0.2082142,96055.0,96049.0,0.00656]
[1763144367032,0.0114,96058.0,96051.0,0.20822256]
[1763144367033,0.02602729,96053.0,96051.0,0.20822256]
[1763144367334,0.20821033,96057.0,96054.0,0.20821612]
[1763144367753,0.02602648,96056.0,96051.0,0.20822271]
[1763144367959,0.02602648,96056.0,96049.0,0.00656]
[1763144367960,0.20822303,96051.0,96049.0,0.00656]
[1763144368156,0.0114,96058.0,96042.0,0.00656]
[1763144368422,0.20822478,96051.0,96043.0,0.20824005]
[1763144368595,0.20822478,96051.0,96048.0,0.20822837]
[1763144368742,0.20822572,96050.0,96046.0,0.2082319]
[1763144368942,0.0114,96044.0,96037.0,0.20825182]
[1763144369180,0.04936621,96057.0,96046.0,0.20823293]
[1763144369383,0.04936621,96057.0,96039.0,0.10479654]
[1763144369584,0.20821429,96055.0,96051.0,0.20822171]
[1763144369834,0.2082199,96053.0,96050.0,0.20822484]
[1763144370008,0.0114,96058.0,96039.0,0.10479654]
[1763144370238,0.01890487,96065.0,96055.0,0.20821354]
[1763144370412,0.01890487,96065.0,96054.0,0.00656]
[1763144370413,0.20821404,96055.0,96054.0,0.00656]
[1763144370567,0.20821404,96055.0,96040.0,0.01655]
[1763144370568,0.01633,96055.0,96040.0,0.00656]
[1763144370769,0.01182,96041.0,96022.0,0.005]
[1763144370977,0.02815,96041.0,96028.0,0.20827231]
[1763144371184,0.02815,96041.0,96022.0,0.005]
[1763144371185,0.20826398,96032.0,96025.0,0.20827876]
[1763144371417,0.20825613,96036.0,96029.0,0.20826889]
[1763144371618,0.2082687,96030.0,96027.0,0.20827475]
[1763144371953,0.20826252,96033.0,96026.0,0.31307129]
[1763144372114,0.01182,96041.0,96028.0,0.20827176]
[1763144372318,0.20826887,96030.0,96027.0,0.20827475]
[1763144372502,0.2082572,96036.0,96027.0,0.20827475]
[1763144372705,0.20826855,96030.0,96027.0,0.20827475]
[1763144372901,0.20825523,96036.0,96032.0,0.2082628]
[1763144373114,0.20825758,96035.0,96032.0,0.2082628]
[1763144373324,0.20825249,96038.0,96026.0,0.10479654]
[1763144373528,0.01182,96047.0,96027.0,0.00453284]
[1763144373736,0.01182,96047.0,96046.0,0.20823355]
[1763144373959,0.01182,96047.0,96043.0,0.20823859]
[1763144373960,0.22005201,96047.0,96043.0,0.20823859]
[1763144374090,0.22816804,96046.0,96043.0,0.20823859]
[1763144374285,0.01633,96044.0,96026.0,0.10479654]
[1763144374509,0.20825132,96038.0,96026.0,0.10479654]
[1763144374710,0.20825845,96035.0,96032.0,0.20826361]
[1763144374905,0.02485,96046.0,96027.0,0.001]
[1763144375151,0.20825206,96038.0,96034.0,0.20825846]
[1763144375354,0.02485,96046.0,96027.0,0.001]
[1763144375560,0.02285249,96045.0,96041.0,0.20824379]
[1763144375778,0.20823789,96044.0,96026.0,0.10579654]
[1763144376011,0.01633,96037.0,96027.0,0.2082745]
[1763144376220,0.20826075,96034.0,96026.0,0.20927517]
[1763144376517,0.20825941,96035.0,96031.0,0.20826588]
[1763144376642,0.20825523,96036.0,96032.0,0.20826314]
[1763144376842,0.20824594,96041.0,96024.0,0.10479654]
[1763144377078,0.65650825,96050.0,96036.0,0.20825476]
[1763144377079,0.20824658,96040.0,96036.0,0.20825476]
[1763144377285,0.20825536,96036.0,96032.0,0.20929427]
[1763144377486,0.20825536,96036.0,96032.0,0.20826269]
[1763144377863,0.20825289,96038.0,96024.0,0.10479654]
[1763144378142,0.02485,96042.0,96041.0,0.20824439]
[1763144378342,0.41635772,96072.0,96024.0,0.10479654]
[1763144378343,0.323,96052.0,96046.0,0.20823355]
[1763144378548,0.20822557,96050.0,96046.0,0.20823355]
[1763144378754,0.0310144,96047.0,96046.0,0.20823355]
[1763144379051,0.01182,96047.0,96043.0,0.20823889]
[1763144379278,0.01920584,96046.0,96045.0,0.20823572]
[1763144379544,0.01920584,96046.0,96042.0,0.20824037]
[1763144379726,0.01182,96047.0,96025.0,0.01655]
[1763144379727,0.20823619,96045.0,96025.0,0.01655]
[1763144379929,0.20823619,96045.0,96041.0,0.20824247]
[1763144380136,0.01921953,96044.0,96043.0,0.20823872]
[1763144380459,0.01921953,96044.0,96038.0,0.20824882]
[1763144380582,0.01921953,96043.0,96038.0,0.20824882]
[1763144380781,0.01182,96047.0,96046.0,0.20823355]
[1763144381276,0.03103851,96047.0,96046.0,0.20823355]
[1763144381407,0.01921851,96047.0,96043.0,0.20823973]
[1763144381608,0.01921851,96046.0,96045.0,0.20823572]
[1763144382385,0.01923077,96048.0,96042.0,0.00656]
[1763144382581,0.20824222,96042.0,96022.0,0.005]
[1763144382741,0.01923077,96041.0,96037.0,0.20825254]
[1763144383095,0.01923077,96040.0,96034.0,0.20825782]
[1763144383223,0.01923077,96039.0,96034.0,0.20825782]
[1763144383428,0.01923077,96038.0,96037.0,0.20825306]
[1763144383626,0.01923947,96042.0,96039.0,0.20824685]
[1763144383846,0.01923951,96041.0,96040.0,0.20824656]
[1763144385055,0.01923951,96041.0,96039.0,0.20824685]
[1763144385254,0.01923951,96040.0,96039.0,0.20824685]
[1763144386460,0.01923951,96040.0,96039.0,0.31304339]
[1763144386858,0.04127439,96062.0,96051.0,0.20822244]
[1763144387037,0.02199544,96062.0,96061.0,0.20820103]
[1763144387243,0.02891719,96062.0,96056.0,0.00656]
[1763144387445,0.02891719,96061.0,96060.0,0.20820304]
[1763144387858,0.01927813,96061.0,96060.0,0.20820304]
[1763144388470,0.01927813,96061.0,96056.0,0.00656]
[1763144388809,0.0114,96063.0,96058.0,0.20820628]
[1763144388810,0.01927813,96060.0,96058.0,0.20820628]
[1763144388967,0.01926938,96059.0,96058.0,0.20820628]
[1763144389324,0.01926938,96059.0,96058.0,0.20820754]
[1763144391824,0.22747573,96059.0,96056.0,0.00656]
[1763144392025,0.01926938,96058.0,96057.0,0.20820816]
[1763144394211,0.01926938,96058.0,96056.0,0.01156]
[1763144394412,0.0114,96067.0,96058.0,0.20820754]
[1763144394624,0.20819868,96063.0,96059.0,0.20820342]
[1763144394834,0.01925664,96062.0,96059.0,0.20820342]
[1763144395008,0.20819987,96062.0,96061.0,0.00024425]
[1763144395239,0.22745649,96062.0,96061.0,0.00024425]
[1763144395645,0.24378649,96062.0,96061.0,0.00024425]
[1763144396567,0.01925662,96062.0,96061.0,0.20844528]
[1763144396872,0.24378549,96062.0,96061.0,0.00024425]
[1763144397504,0.22452887,96062.0,96061.0,0.00024425]
[1763144400453,0.0114,96067.0,96061.0,0.20844528]
[1763144400723,0.22743874,96066.0,96062.0,0.20819673]
[1763144400935,0.0114,96067.0,96066.0,0.2081902]
[1763144401139,0.2081902,96066.0,96061.0,0.01023425]
[1763144401284,0.21958867,96067.0,96064.0,0.20819367]
[1763144401486,0.20819887,96062.0,96061.0,0.00024425]
[1763144402014,0.0114,96067.0,96061.0,0.00024425]
[1763144402228,0.22390887,96062.0,96061.0,0.00024425]
[1763144402440,0.59032761,96062.0,96061.0,0.00024425]
[1763144402604,0.60956647,96062.0,96061.0,0.00024425]
[1763144403175,0.65956647,96062.0,96061.0,0.00024425]
[1763144403385,0.66918544,96062.0,96061.0,0.00024425]
[1763144403591,0.67018544,96062.0,96061.0,0.00024425]
[1763144404013,0.69235042,96062.0,96061.0,0.00024425]
[1763144404484,0.75968754,96062.0,96061.0,1e-08]
[1763144404714,0.79661542,96062.0,96061.0,1e-08]
[1763144404930,0.75968754,96062.0,96061.0,1e-08]
[1763144405266,0.79560509,96062.0,96061.0,1e-08]
[1763144405491,0.76068754,96062.0,96061.0,1e-08]
[1763144405692,0.69878744,96062.0,96061.0,1e-08]
[1763144406054,0.69978744,96062.0,96061.0,1e-08]
[1763144406873,0.69978744,96062.0,96061.0,0.00500001]
[1763144407494,0.64978744,96062.0,96061.0,0.00500001]
[1763144408610,0.64678744,96062.0,96061.0,0.00500001]
[1763144408819,0.64778744,96062.0,96061.0,0.00500001]
[1763144409017,0.2823687,96062.0,96061.0,0.00500001]
[1763144409258,0.24514773,96062.0,96061.0,0.00500001]
[1763144409634,0.56814773,96062.0,96061.0,0.00500001]
[1763144409856,0.28856647,96062.0,96061.0,0.00500001]
[1763144410064,0.61156647,96062.0,96061.0,0.00500001]
[1763144411753,0.59232761,96062.0,96061.0,0.00500001]
[1763144412583,0.6615516,96062.0,96061.0,0.00500001]
[1763144413001,0.6115516,96062.0,96061.0,0.00500001]
[1763144413179,0.59232761,96062.0,96061.0,0.00500001]
[1763144413782,0.61155083,96062.0,96061.0,0.00500001]
[1763144415783,0.20828343,96023.0,96013.0,0.20830406]
[1763144415988,0.20828343,96023.0,95980.0,0.00999999]
[1763144415989,0.02682,96012.0,96007.0,0.05591524]
[1763144416183,0.01165,96018.0,96008.0,0.10729593]
[1763144416436,0.01041341,96030.0,96008.0,0.10729593]
[1763144416437,0.20828815,96021.0,96016.0,0.20829728]
[1763144416638,0.01165,96024.0,96000.0,0.01041666]
[1763144416858,0.01517,96015.0,96003.0,0.10479654]
[1763144417000,0.20830295,96014.0,96013.0,0.001]
[1763144417356,0.20829955,96016.0,96013.0,0.001]
[1763144417551,0.20829667,96017.0,96012.0,0.20830529]
[1763144417756,0.2083041,96014.0,96010.0,0.20830948]
[1763144417897,0.20831279,96010.0,96007.0,0.001]
[1763144418097,0.02682,96008.0,96007.0,0.001]